fUSD/lending_fUSD_20250814
["ID","MTS","AMOUNT","RATE_DAILY","PERIOD"]
[379235431,1755204639313,-755.88210146,0.00026566,2]
[379235432,1755204639331,-150.0,0.00026567,2]
[379235433,1755204639352,-150.0,0.00026579,2]
[379235434,1755204639367,-150.0,0.00026579,2]
[379235435,1755204639376,-150.0,0.00026593,2]
[379235436,1755204639385,-150.0,0.00026604,2]
[379235437,1755204639394,-583.75,0.0002661,7]
[379235438,1755204639404,-150.0,0.00026614,2]
[379235439,1755204639413,-150.0,0.00026622,2]
[379235440,1755204639422,-150.0,0.00026651,2]
[379235441,1755204639432,-150.0,0.00026668,2]
[379235442,1755204639441,-150.0,0.00026669,2]
[379235443,1755204639451,-150.0,0.00026669,2]
[379235444,1755204639460,-160.0,0.00026675,2]
[379235445,1755204639471,-800.91337559,0.0002668,2]
[379235446,1755204639480,-6936.1804,0.00026684,2]
[379235447,1755204639490,-150.0,0.0002669,2]
[379235448,1755204639499,-1076.34,0.000267,2]
[379235449,1755204639509,-150.0,0.00026712,2]
[379235450,1755204639518,-300.0,0.00026712,2]
[379235451,1755204639528,-150.0,0.0002673,2]
[379235452,1755204639538,-600.0,0.0002674,2]
[379235453,1755204639547,-150.0,0.00026744,2]
[379235454,1755204639556,-150.0,0.00026759,2]
[379235455,1755204639565,-150.0,0.00026767,2]
[379235456,1755204639575,-160.74,0.00026774,2]
[379235457,1755204639584,-150.0,0.00026779,2]
[379235458,1755204639594,-1723.13194839,0.00026785,2]
[379235459,1755204639605,-185.22,0.00026786,2]
[379235460,1755204639615,-1723.13194839,0.00026792,2]
[379235461,1755204639624,-845.94464972,0.00026795,2]
[379235462,1755204639634,-268.36,0.00026795,2]
[379235463,1755204639643,-104755.47521808,0.00026795,2]
[379235464,1755204639686,-2899.96167516,0.00026795,2]
[379235465,1755204639695,-5000.0,0.00026808,4]
[379235466,1755204639704,-5675.03832516,0.00026812,2]
[379235467,1755204639791,-4118.321472,0.00026812,2]
[379235468,1755204639810,-97862.07709608,0.00026812,2]
[379235469,1755204639828,-210.06,0.00026818,2]
[379235470,1755204639838,-1723.13194839,0.00026831,2]
[379235471,1755204639847,-150.0,0.0002684,2]
[379235472,1755204639858,-2158.7,0.00026849,14]
[379235473,1755204639867,-150.0,0.00026853,2]
[379235474,1755204639877,-150.0,0.00026853,2]
[379235475,1755204639887,-107655.43689324,0.00026857,2]
[379235476,1755204639896,-1723.13194839,0.00026865,2]
[379235477,1755204639906,-26949.04646903,0.00026878,2]
[379235478,1755204639937,-3872.49252026,0.00026878,2]
[379235482,1755204640651,-838.14897401,0.00026766,2]
[379235483,1755204640661,-26239.81421107,0.00026878,2]
[379235484,1755204640874,-297.1405041,0.00026878,2]
[379235485,1755204640887,-1148.83851096,0.00026878,2]
[379235486,1755204640954,-536.37512288,0.00026878,2]
[379235487,1755204640966,-307.64699679,0.00026878,2]
[379235512,1755204643442,-290.96510099,0.00026878,2]
[379235513,1755204643686,-281.03,0.00026878,2]
[379235514,1755204643741,-12267.45188609,0.00026878,2]
[379235515,1755204643800,-35464.63557107,0.00026878,2]
[379235516,1755204643811,-150.0,0.00026888,2]
[379235517,1755204643821,-5736.86442893,0.00026889,2]
[379235534,1755204647365,-693.36844914,0.00026889,2]
[379235535,1755204647376,-101225.20401517,0.00026889,2]
[379235536,1755204647386,-107655.43689324,0.00026891,2]
[379235537,1755204647395,-107655.43689324,0.00026899,2]
[379235538,1755204647405,-608.42301701,0.000269,2]
[379235539,1755204647414,-4205.4597962,0.000269,2]
[379235540,1755204647424,-150.0,0.00026904,2]
[379235541,1755204647433,-150.0,0.00026906,2]
[379235542,1755204647443,-890.97592385,0.0002691,2]
[379235543,1755204647452,-608.42301699,0.0002692,2]
[379235544,1755204647462,-1723.13194839,0.00026928,2]
[379235545,1755204647471,-150.0,0.0002693,2]
[379235546,1755204647480,-150.0,0.00026933,2]
[379235547,1755204647489,-608.42301699,0.0002694,2]
[379235548,1755204647499,-4205.45979612,0.00026944,2]
[379235549,1755204647509,-150.0,0.0002695,2]
[379235550,1755204647518,-150.0,0.00026951,2]
[379235551,1755204647527,-150.0,0.00026952,2]
[379235552,1755204647539,-1723.13194839,0.00026954,2]
[379235553,1755204647548,-150.0,0.00026954,2]
[379235554,1755204647557,-150.0,0.00026955,2]
[379235555,1755204647566,-346.8,0.00026959,2]
[379235556,1755204647575,-608.42301699,0.0002696,2]
[379235557,1755204647584,-150.0,0.00026961,2]
[379235558,1755204647593,-168.0,0.00026961,2]
[379235559,1755204647602,-165.55,0.00026969,2]
[379235560,1755204647610,-150.0,0.00026972,2]
[379235561,1755204647619,-608.42301699,0.0002698,2]
[379235562,1755204647629,-4205.45979612,0.00026988,2]
[379235563,1755204647638,-1723.13194839,0.00026992,2]
[379235564,1755204647647,-608.42301699,0.00027,2]
[379235565,1755204647656,-2000.0,0.00027,2]
[379235566,1755204647665,-2000.0,0.00027,2]
[379235567,1755204647675,-29250.0,0.00027,2]
[379235568,1755204647684,-219.0,0.00027,7]
[379235569,1755204647693,-2000.0,0.00027,2]
[379235570,1755204647702,-311.1,0.00027013,2]
[379235571,1755204647711,-160.0,0.00027013,2]
[379235572,1755204647720,-3111.0,0.00027013,2]
[379235573,1755204647729,-287.61899177,0.00027013,2]
[379235574,1755204647738,-608.42301699,0.0002702,2]
[379235575,1755204647747,-936.00719798,0.00027025,2]
[379235576,1755204647757,-150.0,0.00027028,2]
[379235577,1755204647767,-4205.45979612,0.00027032,2]
[379235578,1755204647779,-2500.0,0.00027037,2]
[379235579,1755204647788,-150.0,0.00027039,2]
[379235580,1755204647797,-608.42301699,0.0002704,2]
[379235581,1755204647806,-608.42301699,0.0002706,2]
[379235582,1755204647815,-1000.0,0.0002707,2]
[379235583,1755204647825,-150.0,0.00027074,2]
[379235584,1755204647835,-838.14897401,0.00027074,2]
[379235585,1755204647844,-150.0,0.00027076,2]
[379235586,1755204647853,-4205.45979612,0.00027076,2]
[379235587,1755204647863,-608.42301699,0.0002708,2]
[379235588,1755204647872,-150.0,0.00027088,2]
[379235589,1755204647881,-585.40621148,0.00027088,12]
[379235590,1755204647890,-150.0,0.00027094,2]
[379235591,1755204647899,-608.42301699,0.00027099,2]
[379235592,1755204647908,-488.22,0.000271,2]
[379235593,1755204647918,-1000.0,0.000271,2]
[379235594,1755204647927,-150.0,0.0002711,2]
[379235595,1755204647937,-608.42301699,0.00027119,2]
[379235596,1755204647946,-7000.0,0.0002712,2]
[379235597,1755204647955,-4205.45979612,0.00027121,2]
[379235598,1755204647964,-150.0,0.00027122,2]
[379235599,1755204647973,-2158.7,0.00027123,14]
[379235600,1755204647982,-376.1,0.00027123,2]
[379235601,1755204647991,-150.0,0.00027133,2]
[379235602,1755204648000,-737.0,0.00027137,2]
[379235603,1755204648010,-150.0,0.00027139,2]
[379235604,1755204648020,-981.03847211,0.00027139,2]
[379235605,1755204648029,-608.42301699,0.00027139,2]
[379235606,1755204648038,-150.0,0.0002715,2]
[379235607,1755204648047,-608.42301699,0.00027159,2]
[379235608,1755204648056,-4205.45979612,0.00027165,2]
[379235609,1755204648065,-2488.90631287,0.00027165,2]
[379235610,1755204648074,-435.37292233,0.00027166,2]
[379235611,1755204648084,-150.0,0.00027168,2]
[379235612,1755204648093,-200.0,0.00027173,2]
[379235613,1755204648102,-8703.149,0.00027173,15]
[379235614,1755204648111,-390.82,0.00027173,15]
[379235615,1755204648120,-150.0,0.00027174,2]
[379235616,1755204648130,-200.0,0.00027175,2]
[379235617,1755204648139,-200.0,0.00027177,2]
[379235618,1755204648148,-2488.90631284,0.00027179,2]
[379235619,1755204648157,-608.42301699,0.00027179,2]
[379235620,1755204648166,-150.0,0.0002718,2]
[379235621,1755204648176,-344.0,0.00027185,7]
[379235622,1755204648185,-150.0,0.00027188,2]
[379235623,1755204648195,-628.8776,0.00027193,2]
[379235624,1755204648204,-2488.90631284,0.00027193,2]
[379235625,1755204648213,-34532.0512,0.00027196,2]
[379235626,1755204648223,-1000.0,0.00027196,2]
[379235627,1755204648232,-608.42301699,0.00027199,2]
[379235628,1755204648242,-1000.0,0.000272,2]
[379235629,1755204648251,-150.0,0.00027206,2]
[379235630,1755204648263,-2488.90631284,0.00027207,2]
[379235631,1755204648272,-4205.45979612,0.00027209,2]
[379235632,1755204648281,-1000.0,0.00027209,2]
[379235633,1755204648291,-150.0,0.0002721,2]
[379235634,1755204648300,-608.42301699,0.00027219,2]
[379235635,1755204648310,-150.0,0.00027221,2]
[379235636,1755204648319,-2116.74127545,0.00027221,2]
[379235637,1755204648435,-372.16503739,0.00027221,2]
[379235638,1755204648444,-150.0,0.00027223,2]
[379235639,1755204648454,-150.0,0.00027225,2]
[379235640,1755204648464,-150.0,0.00027232,2]
[379235641,1755204648473,-157.247,0.00027235,2]
[379235642,1755204648483,-3369.0,0.00027235,2]
[379235643,1755204648492,-2028.0,0.00027235,2]
[379235644,1755204648502,-927.0,0.00027235,2]
[379235645,1755204648512,-1254.0,0.00027235,2]
[379235646,1755204648522,-598.0,0.00027235,2]
[379235647,1755204648531,-1655.0,0.00027235,2]
[379235648,1755204648541,-565.0,0.00027235,2]
[379235649,1755204648551,-1296.0,0.00027235,2]
[379235650,1755204648560,-237.31422405,0.00027235,2]
[379235651,1755204649958,14099.80373927,0.00030136,120]
[379235653,1755204692932,1306.7537554,0.0003013,120]
[379235654,1755204694928,7049.90186963,0.00030136,120]
[379235658,1755204785138,3524.95093482,0.00030136,120]
[379235659,1755204829991,1762.47546741,0.00030136,120]
[379235660,1755204900369,465.85,0.00024758,30]
[379235661,1755204920029,881.2377337,0.00030136,120]
[379235662,1755204964832,440.61886685,0.00030136,120]
[379235663,1755205054847,220.30943342,0.00030136,120]
[379235664,1755205099910,220.30943343,0.00030136,120]
[379235665,1755205357194,3600.0,0.00026,30]
[379235666,1755205531896,3806.0,0.00019,2]
[379235668,1755205770564,200.0,0.0003013,120]
[379235690,1755205832139,-599.0,0.00022,2]
[379235691,1755205832149,-2500.0,0.00022096,2]
[379235692,1755205832159,-599.0,0.00022192,7]
[379235693,1755205832169,-300.0,0.0002228,2]
[379235694,1755205832179,-1200.0,0.0002228,2]
[379235695,1755205832189,-2500.0,0.00022281,2]
[379235696,1755205832199,-599.0,0.00023014,7]
[379235697,1755205832209,-799.80526902,0.00023092,2]
[379235698,1755205832220,-1000.0,0.00023377,2]
[379235699,1755205832230,-454.03,0.00023544,2]
[379235700,1755205832241,-1000.0,0.00023576,2]
[379235701,1755205832251,-599.0,0.00024164,7]
[379235702,1755205832263,-2084.12805204,0.000242,2]
[379235703,1755205832277,-415.87194796,0.000242,2]
[379235705,1755205832287,-1082.09441232,0.00024318,2]
[379235707,1755205832299,-14.90558768,0.00024318,2]
[379235709,1755205832308,-2500.0,0.00024339,2]
[379235711,1755205832318,-300.0,0.00024339,2]
[379235712,1755205832328,-500.0,0.00024443,2]
[379235715,1755205832338,-151.0,0.00024443,2]
[379235716,1755205832348,-1723.3859667,0.00024462,2]
[379235720,1755205832374,-250.0964,0.00024462,2]
[379235753,1755205832679,-320.0,0.00024462,2]
[379235783,1755205837916,-180.64718737,0.00022092,2]
[379235784,1755205837926,-206.5176333,0.00024462,2]
[379235785,1755205837934,-153.63,0.0002448,2]
[379235786,1755205837943,-500.0,0.00024498,2]
[379235787,1755205837951,-153.63,0.00024498,2]
[379235788,1755205837960,-153.63,0.00024517,2]
[379235789,1755205837969,-616.36544558,0.00024527,2]
[379235790,1755205837978,-153.63,0.00024536,2]
[379235791,1755205837988,-153.63,0.00024555,2]
[379235792,1755205837996,-1000.0,0.00024556,2]
[379235793,1755205838006,-170.0,0.00024561,7]
[379235794,1755205838016,-250.0,0.00024561,2]
[379235795,1755205838027,-153.63,0.00024574,2]
[379235796,1755205838037,-153.63,0.00024593,2]
[379235797,1755205838047,-153.63,0.00024611,2]
[379235798,1755205838056,-153.63,0.0002463,2]
[379235799,1755205838066,-153.63,0.00024649,2]
[379235800,1755205838075,-153.63,0.00024668,2]
[379235801,1755205838085,-153.63,0.00024687,2]
[379235802,1755205838094,-153.63,0.00024705,2]
[379235803,1755205838104,-625.8,0.00024718,2]
[379235804,1755205838114,-153.63,0.00024724,2]
[379235805,1755205838123,-572.58229527,0.00024763,2]
[379235806,1755205838265,-499.18847519,0.00024763,2]
[379235854,1755205839682,-1068.93340583,0.00024763,2]
[379235855,1755205839695,-859.29582371,0.00024763,2]
[379235856,1755205839705,-300.0,0.00024763,2]
[379235857,1755205839715,-160.0,0.00024763,2]
[379235858,1755205839726,-600.0,0.00024763,2]
[379235859,1755205839735,-151.0,0.00024763,2]
[379235860,1755205839745,-151.0,0.00024763,2]
[379235861,1755205839755,-4269.20417629,0.00024763,2]
[379235879,1755205845600,-4821.53319989,0.00024763,2]
[379235880,1755205845979,-184.07369877,0.00024763,2]
[379235881,1755205845992,-277.35679052,0.00024763,2]
[379235882,1755205846001,-809.70665441,0.00024763,2]
[379235883,1755205846011,-151.0,0.00024763,2]
[379235884,1755205846021,-163.28,0.00024783,2]
[379235885,1755205846031,-3208.30227269,0.00024818,2]
[379235886,1755205846041,-173.33,0.00024877,2]
[379235887,1755205846051,-6856.95058361,0.000249,2]
[379235888,1755205846062,-3543.92508,0.000249,2]
[379235891,1755205873356,155.85,0.00013699,2]
[379235893,1755205912096,621.8,0.00025516,30]
[379235896,1755206293534,175.76,0.00027164,120]
[379235897,1755206609368,700.0,0.00030136,120]
[379235898,1755206609618,700.0,0.00030136,120]
[379235899,1755206609853,700.0,0.00030136,120]
[379235900,1755206610091,700.0,0.00030136,120]
[379235901,1755206610345,700.0,0.00030136,120]
[379235902,1755206610575,700.0,0.00030136,120]
[379235903,1755206610842,700.0,0.00030136,120]
[379235904,1755206611114,700.0,0.00030136,120]
[379235905,1755206611351,700.0,0.00030136,120]
[379235906,1755206611659,700.0,0.00030136,120]
[379235907,1755206611844,700.0,0.00030136,120]
[379235908,1755206612189,700.0,0.00030136,120]
[379235909,1755206612697,700.0,0.00030136,120]
[379235910,1755206612818,700.0,0.00030136,120]
[379235911,1755206614073,700.0,0.00030136,120]
[379235912,1755206614243,700.0,0.00030136,120]
[379235913,1755206614457,700.0,0.00030136,120]
[379235914,1755206614575,700.0,0.00030136,120]
[379235915,1755206614685,700.0,0.00030136,120]
[379235916,1755206614878,700.0,0.00030136,120]
[379235917,1755206615340,700.0,0.00030136,120]
[379235918,1755206615452,700.0,0.00030136,120]
[379235919,1755206615654,700.0,0.00030136,120]
[379235920,1755206615805,700.0,0.00030136,120]
[379235921,1755206616347,700.0,0.00030136,120]
[379235922,1755206616609,700.0,0.00030136,120]
[379235923,1755206616763,700.0,0.00030136,120]
[379235924,1755206617078,700.0,0.00030136,120]
[379235925,1755206617365,700.0,0.00030136,120]
[379235926,1755206617472,700.0,0.00030136,120]
[379235927,1755206617842,700.0,0.00030136,120]
[379235928,1755206618084,700.0,0.00030136,120]
[379235929,1755206618325,700.0,0.00030136,120]
[379235930,1755206618571,700.0,0.00030136,120]
[379235931,1755206618801,700.0,0.00030136,120]
[379235932,1755206619471,700.0,0.00030136,120]
[379235933,1755206620003,700.0,0.00030136,120]
[379235934,1755206620156,700.0,0.00030136,120]
[379235935,1755206620424,700.0,0.00030136,120]
[379235936,1755206620695,700.0,0.00030136,120]
[379235937,1755206620826,700.0,0.00030136,120]
[379235938,1755206620973,700.0,0.00030136,120]
[379235939,1755206621248,700.0,0.00030136,120]
[379235940,1755206621600,700.0,0.00030136,120]
[379235941,1755206621830,700.0,0.00030136,120]
[379235942,1755206622168,700.0,0.00030136,120]
[379235943,1755206622406,700.0,0.00030136,120]
[379235944,1755206622648,700.0,0.00030136,120]
[379235945,1755206622879,700.0,0.00030136,120]
[379235946,1755206623131,700.0,0.00030136,120]
[379235947,1755206623373,700.0,0.00030136,120]
[379235948,1755206623616,700.0,0.00030136,120]
[379235949,1755206625685,700.0,0.00030136,120]
[379235950,1755206625744,700.0,0.00030136,120]
[379235951,1755206625872,700.0,0.00030136,120]
[379235952,1755206626115,700.0,0.00030136,120]
[379235953,1755206626207,700.0,0.00030136,120]
[379235954,1755206626414,700.0,0.00030136,120]
[379235955,1755206626516,700.0,0.00030136,120]
[379235956,1755206626618,700.0,0.00030136,120]
[379235957,1755206626680,700.0,0.00030136,120]
[379235958,1755206626736,700.0,0.00030136,120]
[379235959,1755206626965,700.0,0.00030136,120]
[379235960,1755206627208,700.0,0.00030136,120]
[379235961,1755206627446,700.0,0.00030136,120]
[379235962,1755206627696,700.0,0.00030136,120]
[379235963,1755206628676,700.0,0.00030136,120]
[379235964,1755206628800,700.0,0.00030136,120]
[379235965,1755206629763,700.0,0.00030136,120]
[379235966,1755206629974,700.0,0.00030136,120]
[379235967,1755206630166,700.0,0.00030136,120]
[379235968,1755206630671,700.0,0.00030136,120]
[379235969,1755206630941,700.0,0.00030136,120]
[379235970,1755206631785,700.0,0.00030136,120]
[379235971,1755206632008,700.0,0.00030136,120]
[379235972,1755206633066,700.0,0.00030136,120]
[379235973,1755206634059,700.0,0.00030136,120]
[379235974,1755206634665,700.0,0.00030136,120]
[379235975,1755206634804,700.0,0.00030136,120]
[379235976,1755206634898,700.0,0.00030136,120]
[379235977,1755206636535,700.0,0.00030136,120]
[379235978,1755206636745,700.0,0.00030136,120]
[379235979,1755206636891,700.0,0.00030136,120]
[379235980,1755206637367,700.0,0.00030136,120]
[379235981,1755206637463,700.0,0.00030136,120]
[379235982,1755206637540,700.0,0.00030136,120]
[379235983,1755206637634,700.0,0.00030136,120]
[379235984,1755206637720,700.0,0.00030136,120]
[379235985,1755206638072,700.0,0.00030136,120]
[379235986,1755206638276,700.0,0.00030136,120]
[379235987,1755206638539,700.0,0.00030136,120]
[379235988,1755206638814,700.0,0.00030136,120]
[379235989,1755206639048,700.0,0.00030136,120]
[379235990,1755206639288,700.0,0.00030136,120]
[379235991,1755206640114,700.0,0.00030136,120]
[379235992,1755206640350,700.0,0.00030136,120]
[379235993,1755206640655,700.0,0.00030136,120]
[379235994,1755206644390,5000.0,0.00030137,120]
[379235995,1755206669171,3000.0,0.00030137,120]
[379235996,1755206708543,179073.15,0.00019,2]
[379235997,1755206722377,5000.0,0.00030137,120]
[379235998,1755206741870,5000.0,0.00030137,120]
[379235999,1755206780001,5000.0,0.00030137,120]
[379236001,1755206840991,20000.0,0.00030137,120]
[379236002,1755206865701,20000.0,0.00030137,120]
[379236003,1755206886658,462.52421944,0.00025,60]
[379236004,1755206915892,10000.0,0.00030137,120]
[379236005,1755206916201,157.72,0.00013699,2]
[379236009,1755206955691,628.58,0.00024685,30]
[379236029,1755207035471,-1359.06667435,0.00018905,2]
[379236030,1755207035483,-1374.05177347,0.00018905,2]
[379236031,1755207035535,-2959.47857218,0.00018905,2]
[379236032,1755207035544,-1200.0,0.00018999,2]
[379236033,1755207035553,-7629.52142781,0.00019,2]
[379236034,1755207035565,-1080.98695241,0.00019,2]
[379236035,1755207035604,-4577.80053643,0.00019,2]
[379236036,1755207035683,-842.76868407,0.00019,2]
[379236037,1755207035980,-1927.6133113,0.00019,2]
[379236055,1755207038096,-47844.87652258,0.00019,2]
[379236056,1755207038106,-250.0,0.00020691,2]
[379236057,1755207038116,-1151.0,0.0002081,2]
[379236058,1755207038125,-220.71,0.00021675,2]
[379236059,1755207038135,-348.53,0.0002177,2]
[379236060,1755207038145,-150.0,0.00021942,2]
[379236061,1755207038154,-150.0,0.00021942,2]
[379236062,1755207038163,-307.39,0.00021943,2]
[379236063,1755207038173,-170.0,0.0002198,7]
[379236064,1755207038182,-341.0,0.00022,2]
[379236065,1755207038192,-250.0,0.00022045,2]
[379236066,1755207038202,-444.8755,0.00022138,2]
[379236067,1755207038212,-341.0,0.00022192,7]
[379236068,1755207038221,-666.0,0.00022283,3]
[379236069,1755207038230,-250.0,0.00022362,2]
[379236070,1755207038240,-1000.0,0.00022515,2]
[379236071,1755207038249,-150.0,0.00022737,2]
[379236072,1755207038258,-281.03,0.00022745,2]
[379236073,1755207038268,-500.0,0.00022795,2]
[379236074,1755207038277,-1100.0,0.000228,8]
[379236075,1755207038287,-255.41724125,0.0002284,2]
[379236076,1755207038297,-167.45,0.0002285,2]
[379236077,1755207038306,-2300.0,0.000229,8]
[379236078,1755207038316,-9579.22880741,0.00022924,2]
[379236079,1755207038326,-595.15839323,0.00022924,2]
[379236080,1755207038336,-299.5634311,0.00022944,2]
[379236081,1755207038345,-162.86478,0.00023,2]
[379236082,1755207038355,-341.0,0.00023014,7]
[379236083,1755207038365,-11039.794,0.00023014,2]
[379236084,1755207038376,-481.045,0.00023014,2]
[379236085,1755207038386,-1075.20315016,0.00023023,10]
[379236086,1755207038396,-1075.20315016,0.00023023,10]
[379236087,1755207038405,-343.70962094,0.00023047,2]
[379236088,1755207038415,-217.1700214,0.00023072,2]
[379236089,1755207038424,-154.40106163,0.00023072,2]
[379236090,1755207038434,-618.37696523,0.00023072,2]
[379236091,1755207038443,-24827.19796834,0.00023073,2]
[379236093,1755207038453,-1534.18501161,0.00023073,2]
[379236095,1755207038463,-452.8097084,0.00023073,2]
[379236097,1755207038472,-313.37886094,0.00023074,2]
[379236099,1755207038481,-387.85581079,0.00023151,2]
[379236101,1755207038491,-156.52,0.00023163,2]
[379236103,1755207038501,-5054.53,0.00023163,2]
[379236105,1755207038513,-5054.53,0.00023163,2]
[379236107,1755207038522,-404.39265142,0.00023163,2]
[379236109,1755207038531,-156.73643347,0.00023172,2]
[379236111,1755207038541,-158.5136715,0.00023174,2]
[379236113,1755207038550,-157.72,0.00023182,2]
[379236116,1755207038559,-432.00200063,0.00023255,2]
[379236118,1755207038568,-1388.46,0.0002327,2]
[379236120,1755207038577,-5000.0,0.00023274,2]
[379236122,1755207038587,-175.76,0.00023283,2]
[379236124,1755207038596,-150.0,0.00023289,2]
[379236126,1755207038605,-9579.22880736,0.00023384,2]
[379236128,1755207038614,-24827.19796834,0.00023498,2]
[379236130,1755207038624,-313.37886092,0.00023543,2]
[379236132,1755207038634,-158.51367142,0.00023586,2]
[379236134,1755207038646,-452.80970839,0.00023676,2]
[379236136,1755207038656,-226.38,0.00023726,2]
[379236138,1755207038666,-168.22,0.00023763,2]
[379236140,1755207038675,-9579.22880736,0.00023844,2]
[379236142,1755207038686,-24827.19796834,0.00023923,2]
[379236144,1755207038695,-1363.59096312,0.00023963,2]
[379236146,1755207038705,-504.0,0.00023963,2]
[379236148,1755207038714,-500.0,0.00023963,2]
[379236150,1755207038727,-250.0,0.00023963,2]
[379236152,1755207038736,-500.0,0.00023963,2]
[379236154,1755207038746,-158.51367142,0.00023999,2]
[379236156,1755207038755,-1135.64916279,0.00024,5]
[379236158,1755207038766,-313.37886092,0.00024012,2]
[379236160,1755207038775,-343.0,0.00024164,7]
[379236162,1755207038784,-200.0,0.00024171,2]
[379236164,1755207038794,-151.0,0.00024171,2]
[379236166,1755207038803,-151.0,0.00024171,2]
[379236168,1755207038812,-500.0,0.00024171,2]
[379236170,1755207038821,-151.0,0.00024171,2]
[379236172,1755207038834,-151.0,0.00024171,2]
[379236174,1755207038844,-151.0,0.00024171,2]
[379236176,1755207038854,-151.0,0.00024171,2]
[379236178,1755207038863,-151.0,0.00024171,2]
[379236180,1755207038872,-151.0,0.00024171,2]
[379236181,1755207038882,-151.0,0.00024171,2]
[379236183,1755207038892,-500.0,0.0002418,2]
[379236184,1755207038901,-500.0,0.0002418,2]
[379236185,1755207038911,-500.0,0.0002418,2]
[379236186,1755207038920,-500.0,0.0002418,2]
[379236187,1755207038930,-500.0,0.0002418,2]
[379236188,1755207038939,-500.0,0.0002418,2]
[379236189,1755207038948,-500.0,0.0002418,2]
[379236190,1755207038957,-500.0,0.0002418,2]
[379236191,1755207038966,-166.93,0.00024199,2]
[379236192,1755207038975,-504.0,0.00024237,2]
[379236193,1755207038984,-500.0,0.00024237,2]
[379236194,1755207038993,-500.0,0.00024237,2]
[379236195,1755207039002,-500.0,0.00024271,2]
[379236196,1755207039012,-500.0,0.00024271,2]
[379236197,1755207039022,-6280.0,0.00024271,2]
[379236198,1755207039031,-150.0,0.00024271,2]
[379236199,1755207039040,-500.0,0.00024271,2]
[379236200,1755207039049,-500.0,0.00024271,2]
[379236201,1755207039059,-150.0,0.00024271,2]
[379236202,1755207039068,-150.0,0.00024271,2]
[379236203,1755207039077,-150.0,0.00024271,2]
[379236204,1755207039086,-150.0,0.00024271,2]
[379236205,1755207039095,-150.0,0.00024271,2]
[379236206,1755207039104,-452.80970839,0.0002428,2]
[379236207,1755207039113,-500.0,0.00024283,2]
[379236208,1755207039123,-159.53260958,0.00024283,2]
[379236209,1755207039132,-500.0,0.00024283,2]
[379236210,1755207039141,-172.49531556,0.00024283,2]
[379236211,1755207039150,-500.0,0.00024283,2]
[379236212,1755207039160,-500.0,0.00024283,2]
[379236213,1755207039169,-500.0,0.00024283,2]
[379236214,1755207039179,-370.73324084,0.00024283,2]
[379236215,1755207039188,-500.0,0.00024283,2]
[379236216,1755207039197,-500.0,0.00024283,2]
[379236217,1755207039207,-500.0,0.00024283,2]
[379236218,1755207039216,-308.64536307,0.00024283,2]
[379236219,1755207039226,-269.96187325,0.00024283,2]
[379236220,1755207039235,-366.25864031,0.00024283,2]
[379236221,1755207039245,-500.0,0.00024283,2]
[379236222,1755207039255,-500.0,0.00024283,2]
[379236223,1755207039266,-500.0,0.00024283,2]
[379236224,1755207039275,-500.0,0.00024283,2]